[Event "Early-Titled-Tuesday-Blitz-November-28-2023"]
[Site "Chess.com"]
[Date "2023.11.28"]
[Round "9"]
[White "Kotlyar_K"]
[Black "LizardMorrison"]
[Result "1-0"]
[WhiteElo "2638"]
[BlackElo "2216"]
[TimeControl "180+1"]
[EndTime "9:52:10 PST"]
[Termination "Kotlyar_K won by checkmate"]

1. e4 {[%clk 0:02:58.9]} 1... a6 {[%clk 0:02:55.1]} 2. d4 {[%clk 0:02:55.7]}
2... g6 {[%clk 0:02:55.4]} 3. Be3 {[%clk 0:02:53.2]} 3... Bg7 {[%clk 0:02:55.7]}
4. f4 {[%clk 0:02:53.4]} 4... b5 {[%clk 0:02:56]} 5. Nf3 {[%clk 0:02:52.3]} 5...
Bb7 {[%clk 0:02:56.4]} 6. Bd3 {[%clk 0:02:52.1]} 6... d6 {[%clk 0:02:56.3]} 7.
O-O {[%clk 0:02:47.2]} 7... Nd7 {[%clk 0:02:54.5]} 8. Nbd2 {[%clk 0:02:47]} 8...
e6 {[%clk 0:02:50]} 9. Qe2 {[%clk 0:02:45.5]} 9... Ne7 {[%clk 0:02:50.2]} 10.
Kh1 {[%clk 0:02:30]} 10... h6 {[%clk 0:02:44.9]} 11. Bg1 {[%clk 0:02:21.3]}
11... f5 {[%clk 0:02:43]} 12. exf5 {[%clk 0:02:19.7]} 12... exf5 {[%clk
0:02:36.4]} 13. Rae1 {[%clk 0:02:17.8]} 13... Nf6 {[%clk 0:02:28.1]} 14. c4
{[%clk 0:02:09.6]} 14... bxc4 {[%clk 0:02:11]} 15. Bxc4 {[%clk 0:01:52.5]} 15...
d5 {[%clk 0:02:07.4]} 16. Bd3 {[%clk 0:01:32.9]} 16... Ne4 {[%clk 0:02:06.6]}
17. Ne5 {[%clk 0:01:33]} 17... O-O {[%clk 0:01:59.8]} 18. Ndf3 {[%clk
0:01:27.8]} 18... Qd6 {[%clk 0:01:34]} 19. Rc1 {[%clk 0:01:25.1]} 19... c6
{[%clk 0:01:16.8]} 20. Nh4 {[%clk 0:01:10.3]} 20... Rfc8 {[%clk 0:01:12.8]} 21.
a3 {[%clk 0:01:07.4]} 21... Kh7 {[%clk 0:01:08.1]} 22. b4 {[%clk 0:01:06.3]}
22... Ng8 {[%clk 0:01:06.4]} 23. Nhxg6 {[%clk 0:00:57.4]} 23... Ngf6 {[%clk
0:00:54]} 24. Nh4 {[%clk 0:00:51.5]} 24... Qd8 {[%clk 0:00:46.5]} 25. Nxf5
{[%clk 0:00:51]} 25... Qe8 {[%clk 0:00:37.6]} 26. Bxe4 {[%clk 0:00:43.2]} 26...
Nxe4 {[%clk 0:00:36.7]} 27. Nxg7 {[%clk 0:00:39.9]} 27... Kxg7 {[%clk
0:00:37.6]} 28. Qg4+ {[%clk 0:00:38.3]} 28... Kh7 {[%clk 0:00:37.7]} 29. Qf5+
{[%clk 0:00:38.1]} 29... Kg7 {[%clk 0:00:34.8]} 30. Qg4+ {[%clk 0:00:35.5]}
30... Kh7 {[%clk 0:00:34.8]} 31. f5 {[%clk 0:00:35.9]} 31... Rc7 {[%clk
0:00:33.6]} 32. f6 {[%clk 0:00:35.7]} 32... Bc8 {[%clk 0:00:31.4]} 33. f7 {[%clk
0:00:20.1]} 33... Bxg4 {[%clk 0:00:20.1]} 34. fxe8=Q {[%clk 0:00:19.9]} 34...
Rxe8 {[%clk 0:00:21]} 35. Nxg4 {[%clk 0:00:18.7]} 35... Kg6 {[%clk 0:00:21.4]}
36. Ne5+ {[%clk 0:00:18]} 36... Kh5 {[%clk 0:00:20.5]} 37. Rxc6 {[%clk
0:00:18.9]} 37... Rxe5 {[%clk 0:00:17.5]} 38. Rxc7 {[%clk 0:00:18.4]} 38... Rg5
{[%clk 0:00:18.4]} 39. Be3 {[%clk 0:00:16.2]} 39... Rg4 {[%clk 0:00:18.5]} 40.
Rf3 {[%clk 0:00:14.4]} 40... Kg6 {[%clk 0:00:15]} 41. h3 {[%clk 0:00:14.7]}
41... Rg3 {[%clk 0:00:12.9]} 42. Rxg3+ {[%clk 0:00:13.3]} 42... Nxg3+ {[%clk
0:00:13.8]} 43. Kh2 {[%clk 0:00:13.5]} 43... Ne4 {[%clk 0:00:13.6]} 44. Rc6+
{[%clk 0:00:13.7]} 44... Kh5 {[%clk 0:00:14.1]} 45. Rxa6 {[%clk 0:00:14.6]}
45... Ng5 {[%clk 0:00:13.6]} 46. Bxg5 {[%clk 0:00:13.6]} 46... hxg5 {[%clk
0:00:12.5]} 47. g4+ {[%clk 0:00:13.8]} 47... Kh4 {[%clk 0:00:11.8]} 48. Rh6#
{[%clk 0:00:14.7]} 1-0

[Event "Early-Titled-Tuesday-Blitz-November-28-2023"]
[Site "Chess.com"]
[Date "2023.11.28"]
[Round "9"]
[White "Dinosaurio_1975"]
[Black "AnaKuchava"]
[Result "1-0"]
[WhiteElo "2519"]
[BlackElo "2210"]
[TimeControl "180+1"]
[EndTime "9:52:14 PST"]
[Termination "Dinosaurio_1975 won by checkmate"]

1. e4 {[%clk 0:03:00.9]} 1... c5 {[%clk 0:02:58]} 2. Nf3 {[%clk 0:03:00.4]} 2...
d6 {[%clk 0:02:56.3]} 3. Bb5+ {[%clk 0:03:00.2]} 3... Bd7 {[%clk 0:02:55.9]} 4.
Bxd7+ {[%clk 0:02:59.9]} 4... Qxd7 {[%clk 0:02:56.8]} 5. O-O {[%clk 0:03:00]}
5... Nc6 {[%clk 0:02:56.1]} 6. c3 {[%clk 0:02:59.7]} 6... e6 {[%clk 0:02:55.4]}
7. d4 {[%clk 0:02:58.9]} 7... cxd4 {[%clk 0:02:54.8]} 8. cxd4 {[%clk 0:02:59.8]}
8... Nf6 {[%clk 0:02:55.3]} 9. Re1 {[%clk 0:02:59.2]} 9... d5 {[%clk 0:02:55.7]}
10. e5 {[%clk 0:02:57.7]} 10... Ne4 {[%clk 0:02:55.8]} 11. a3 {[%clk 0:02:58.2]}
11... Be7 {[%clk 0:02:51.3]} 12. Nbd2 {[%clk 0:02:58.3]} 12... Nxd2 {[%clk
0:02:51.1]} 13. Bxd2 {[%clk 0:02:59.2]} 13... Rc8 {[%clk 0:02:51]} 14. Rc1
{[%clk 0:02:59.3]} 14... a6 {[%clk 0:02:43.6]} 15. h4 {[%clk 0:02:59]} 15... b5
{[%clk 0:02:42.4]} 16. h5 {[%clk 0:02:58.7]} 16... h6 {[%clk 0:02:42.3]} 17. Qb3
{[%clk 0:02:39.6]} 17... Qb7 {[%clk 0:02:26.7]} 18. Qe3 {[%clk 0:02:37.1]} 18...
Kd7 {[%clk 0:02:10.2]} 19. Qf4 {[%clk 0:02:36.2]} 19... Rhf8 {[%clk 0:02:08.9]}
20. Qg4 {[%clk 0:02:31.5]} 20... Qb6 {[%clk 0:01:57.3]} 21. Re3 {[%clk
0:01:46.5]} 21... Rg8 {[%clk 0:01:13.8]} 22. Qf4 {[%clk 0:01:33.4]} 22... Rgf8
{[%clk 0:01:06.4]} 23. Qg4 {[%clk 0:01:12.9]} 23... Rg8 {[%clk 0:01:01.7]} 24.
Bc3 {[%clk 0:00:48.9]} 24... Na5 {[%clk 0:00:48.2]} 25. Nd2 {[%clk 0:00:44]}
25... Nc4 {[%clk 0:00:33.7]} 26. Nxc4 {[%clk 0:00:22.5]} 26... Rxc4 {[%clk
0:00:34.6]} 27. Rf3 {[%clk 0:00:22.7]} 27... Ke8 {[%clk 0:00:16.8]} 28. Rd1
{[%clk 0:00:20.4]} 28... a5 {[%clk 0:00:15.7]} 29. Rdd3 {[%clk 0:00:19.6]} 29...
b4 {[%clk 0:00:15.1]} 30. axb4 {[%clk 0:00:16]} 30... axb4 {[%clk 0:00:16]} 31.
Bd2 {[%clk 0:00:16.5]} 31... Rc2 {[%clk 0:00:12.9]} 32. Rxf7 {[%clk 0:00:13.3]}
32... Kxf7 {[%clk 0:00:11.6]} 33. Qg6+ {[%clk 0:00:12.5]} 33... Kf8 {[%clk
0:00:08.4]} 34. Rf3+ {[%clk 0:00:13.4]} 34... Bf6 {[%clk 0:00:08.7]} 35. exf6
{[%clk 0:00:13.9]} 35... Rxd2 {[%clk 0:00:04.5]} 36. fxg7+ {[%clk 0:00:14]}
36... Ke7 {[%clk 0:00:05]} 37. Qf7+ {[%clk 0:00:14.4]} 37... Kd6 {[%clk
0:00:05]} 38. Qxg8 {[%clk 0:00:14.7]} 38... Rd1+ {[%clk 0:00:04]} 39. Kh2 {[%clk
0:00:15.3]} 39... Qxd4 {[%clk 0:00:04.4]} 40. Qd8+ {[%clk 0:00:14.3]} 40... Kc6
{[%clk 0:00:04.1]} 41. g8=Q {[%clk 0:00:10.9]} 41... Qe5+ {[%clk 0:00:04.4]} 42.
Qg3 {[%clk 0:00:09.3]} 42... Qxh5+ {[%clk 0:00:04.5]} 43. Qh3 {[%clk 0:00:10]}
43... Qe5+ {[%clk 0:00:04.7]} 44. Rg3 {[%clk 0:00:10.7]} 44... Qe1 {[%clk
0:00:04.9]} 45. Qc8+ {[%clk 0:00:09.5]} 45... Kb5 {[%clk 0:00:04.9]} 46. Qb7+
{[%clk 0:00:06.5]} 46... Ka4 {[%clk 0:00:03.1]} 47. Qa6# {[%clk 0:00:06]} 1-0

[Event "Early-Titled-Tuesday-Blitz-November-28-2023"]
[Site "Chess.com"]
[Date "2023.11.28"]
[Round "9"]
[White "Kildepiotr"]
[Black "The_Straightforward_Rook"]
[Result "1-0"]
[WhiteElo "2691"]
[BlackElo "2465"]
[TimeControl "180+1"]
[EndTime "9:52:15 PST"]
[Termination "Kildepiotr won by resignation"]

1. Nf3 {[%clk 0:03:00.9]} 1... Nf6 {[%clk 0:02:58.5]} 2. g3 {[%clk 0:03:01.1]}
2... d5 {[%clk 0:02:57.2]} 3. Bg2 {[%clk 0:03:01.3]} 3... c5 {[%clk 0:02:57.9]}
4. O-O {[%clk 0:03:01.1]} 4... e6 {[%clk 0:02:58.6]} 5. d3 {[%clk 0:03:01.6]}
5... Nc6 {[%clk 0:02:58.1]} 6. Nbd2 {[%clk 0:03:02.2]} 6... Be7 {[%clk
0:02:58.5]} 7. e4 {[%clk 0:03:02.9]} 7... b6 {[%clk 0:02:59.1]} 8. Qe2 {[%clk
0:03:03]} 8... Bb7 {[%clk 0:02:59.4]} 9. c3 {[%clk 0:03:02.7]} 9... Qc7 {[%clk
0:02:59.8]} 10. Re1 {[%clk 0:03:01.1]} 10... h6 {[%clk 0:03:00.4]} 11. a3 {[%clk
0:03:00.2]} 11... O-O {[%clk 0:02:58]} 12. e5 {[%clk 0:03:00]} 12... Nh7 {[%clk
0:02:58.4]} 13. h4 {[%clk 0:02:56.9]} 13... b5 {[%clk 0:02:56.2]} 14. Nf1 {[%clk
0:02:56.2]} 14... a5 {[%clk 0:02:54.6]} 15. Bf4 {[%clk 0:02:53.8]} 15... b4
{[%clk 0:02:42.5]} 16. c4 {[%clk 0:02:53.7]} 16... dxc4 {[%clk 0:02:38.5]} 17.
dxc4 {[%clk 0:02:53.4]} 17... Rfd8 {[%clk 0:02:38.9]} 18. a4 {[%clk 0:02:49.3]}
18... Nf8 {[%clk 0:02:36.9]} 19. h5 {[%clk 0:02:46.2]} 19... Rd7 {[%clk
0:02:35.3]} 20. Red1 {[%clk 0:02:44.4]} 20... Rad8 {[%clk 0:02:35.8]} 21. Rxd7
{[%clk 0:02:43.9]} 21... Rxd7 {[%clk 0:02:36.7]} 22. Rd1 {[%clk 0:02:42.1]}
22... Rxd1 {[%clk 0:02:35.7]} 23. Qxd1 {[%clk 0:02:43]} 23... Qd7 {[%clk
0:02:33.9]} 24. Qc1 {[%clk 0:02:39.2]} 24... Nd4 {[%clk 0:02:30.2]} 25. Nxd4
{[%clk 0:02:38.8]} 25... Bxg2 {[%clk 0:02:31.1]} 26. Kxg2 {[%clk 0:02:37.7]}
26... cxd4 {[%clk 0:02:29]} 27. b3 {[%clk 0:02:35.8]} 27... Qc6+ {[%clk
0:02:19.4]} 28. f3 {[%clk 0:02:31.3]} 28... Nd7 {[%clk 0:02:19.7]} 29. Nd2
{[%clk 0:02:27.3]} 29... Nc5 {[%clk 0:02:18.6]} 30. Qb1 {[%clk 0:02:24.6]} 30...
f6 {[%clk 0:01:58.1]} 31. exf6 {[%clk 0:02:16.2]} 31... Bxf6 {[%clk 0:01:59]}
32. Ne4 {[%clk 0:02:16.6]} 32... e5 {[%clk 0:01:51.9]} 33. Nxc5 {[%clk
0:02:13.1]} 33... Qxc5 {[%clk 0:01:51.4]} 34. Bd2 {[%clk 0:02:00.9]} 34... Qc6
{[%clk 0:01:42.4]} 35. Qf5 {[%clk 0:01:54.5]} 35... Kf7 {[%clk 0:01:29.1]} 36.
Kf2 {[%clk 0:01:52.6]} 36... Qe6 {[%clk 0:01:28]} 37. Qg6+ {[%clk 0:01:37.7]}
37... Ke7 {[%clk 0:01:27.6]} 38. g4 {[%clk 0:01:18.5]} 38... Qf7 {[%clk
0:01:16.4]} 39. Qe4 {[%clk 0:01:17]} 39... Qe6 {[%clk 0:01:05.5]} 40. Ke2 {[%clk
0:01:11.9]} 40... Qb6 {[%clk 0:01:04]} 41. Kd3 {[%clk 0:01:11.7]} 41... Qc5
{[%clk 0:00:54]} 42. Qb7+ {[%clk 0:01:08.4]} 42... Kd6 {[%clk 0:00:52.5]} 43.
Qb8+ {[%clk 0:01:05.2]} 43... Ke7 {[%clk 0:00:52.3]} 44. Qb5 {[%clk 0:01:01.1]}
44... Kd6 {[%clk 0:00:46]} 45. Qxc5+ {[%clk 0:00:55.6]} 45... Kxc5 {[%clk
0:00:45.3]} 46. Ke4 {[%clk 0:00:56.5]} 46... Kd6 {[%clk 0:00:43.7]} 47. Kf5
{[%clk 0:00:50.3]} 47... Kc5 {[%clk 0:00:40.6]} 48. Ke4 {[%clk 0:00:46]} 48...
Bg5 {[%clk 0:00:34.6]} 49. Be1 {[%clk 0:00:44.2]} 49... Bf4 {[%clk 0:00:30.3]}
50. Bh4 {[%clk 0:00:44.2]} 50... Bg5 {[%clk 0:00:29.5]} 51. Bg3 {[%clk
0:00:44.3]} 51... Bf6 {[%clk 0:00:27.8]} 52. f4 {[%clk 0:00:36]} 52... exf4
{[%clk 0:00:26.2]} 53. Bxf4 {[%clk 0:00:36.9]} 53... Kc6 {[%clk 0:00:20.5]} 54.
Bg3 {[%clk 0:00:36.9]} 54... Kc5 {[%clk 0:00:21]} 55. Bc7 {[%clk 0:00:35.9]}
55... d3 {[%clk 0:00:09.7]} 56. Kxd3 {[%clk 0:00:35.5]} 56... Bc3 {[%clk
0:00:08.8]} 57. Bxa5 {[%clk 0:00:34.6]} 57... Kc6 {[%clk 0:00:09.7]} 58. Bd8
{[%clk 0:00:34.6]} 58... Kc5 {[%clk 0:00:10.6]} 59. Be7+ {[%clk 0:00:34.3]}
59... Kc6 {[%clk 0:00:11.4]} 60. Bh4 {[%clk 0:00:32.7]} 60... Kc5 {[%clk
0:00:11.5]} 61. Bf2+ {[%clk 0:00:32.9]} 61... Kc6 {[%clk 0:00:11.9]} 62. Be3
{[%clk 0:00:33]} 62... Be1 {[%clk 0:00:12.8]} 63. Bd2 {[%clk 0:00:33.1]} 63...
Bxd2 {[%clk 0:00:12.5]} 64. Kxd2 {[%clk 0:00:34]} 1-0

[Event "Early-Titled-Tuesday-Blitz-November-28-2023"]
[Site "Chess.com"]
[Date "2023.11.28"]
[Round "9"]
[White "DanylaBagrov"]
[Black "tacticthunder"]
[Result "0-1"]
[WhiteElo "2589"]
[BlackElo "2790"]
[TimeControl "180+1"]
[EndTime "9:52:28 PST"]
[Termination "tacticthunder won by resignation"]

1. e4 {[%clk 0:03:00.9]} 1... c5 {[%clk 0:02:57.5]} 2. b4 {[%clk 0:03:00.4]}
2... cxb4 {[%clk 0:02:51.6]} 3. a3 {[%clk 0:03:00.7]} 3... b3 {[%clk 0:02:49.2]}
4. cxb3 {[%clk 0:03:00.6]} 4... Nf6 {[%clk 0:02:49.6]} 5. Nc3 {[%clk 0:02:55.3]}
5... e5 {[%clk 0:02:47.8]} 6. Bc4 {[%clk 0:02:52.3]} 6... a6 {[%clk 0:02:44]} 7.
Nf3 {[%clk 0:02:51.3]} 7... b5 {[%clk 0:02:41.8]} 8. Bd5 {[%clk 0:02:36.7]} 8...
Nxd5 {[%clk 0:02:40.6]} 9. Nxd5 {[%clk 0:02:37.4]} 9... Nc6 {[%clk 0:02:37.9]}
10. Bb2 {[%clk 0:02:35.2]} 10... d6 {[%clk 0:02:13.9]} 11. Rc1 {[%clk
0:02:34.2]} 11... Bb7 {[%clk 0:02:14]} 12. d4 {[%clk 0:02:32.2]} 12... f6 {[%clk
0:02:12.2]} 13. Nh4 {[%clk 0:02:16.6]} 13... g6 {[%clk 0:02:08.6]} 14. Qg4
{[%clk 0:02:08.8]} 14... Kf7 {[%clk 0:01:52.6]} 15. dxe5 {[%clk 0:01:47.3]}
15... dxe5 {[%clk 0:01:16.3]} 16. O-O {[%clk 0:01:45.8]} 16... Ne7 {[%clk
0:01:15.3]} 17. Nxf6 {[%clk 0:01:37]} 17... Bg7 {[%clk 0:01:00.3]} 18. Nd7
{[%clk 0:01:20.3]} 18... Nc6 {[%clk 0:00:45.7]} 19. Rfd1 {[%clk 0:01:04.6]}
19... Re8 {[%clk 0:00:40.8]} 20. Nc5 {[%clk 0:00:53.6]} 20... Bc8 {[%clk
0:00:39]} 21. Qf3+ {[%clk 0:00:36.6]} 21... Qf6 {[%clk 0:00:38.8]} 22. Nd7
{[%clk 0:00:32.3]} 22... Qxf3 {[%clk 0:00:34.9]} 23. Nxf3 {[%clk 0:00:31.7]}
23... Bb7 {[%clk 0:00:15]} 24. Ndxe5+ {[%clk 0:00:16.9]} 24... Nxe5 {[%clk
0:00:11.8]} 25. Rc7+ {[%clk 0:00:13.1]} 25... Re7 {[%clk 0:00:11.9]} 26. Nxe5+
{[%clk 0:00:12.5]} 26... Bxe5 {[%clk 0:00:12]} 27. Rxe7+ {[%clk 0:00:10.9]}
27... Kxe7 {[%clk 0:00:12.7]} 28. Bxe5 {[%clk 0:00:11.5]} 28... Bxe4 {[%clk
0:00:12.9]} 29. Re1 {[%clk 0:00:10.4]} 29... Bd5 {[%clk 0:00:12.3]} 30. b4
{[%clk 0:00:10.1]} 30... Kf7 {[%clk 0:00:11.7]} 31. Bd6 {[%clk 0:00:08.7]} 31...
Re8 {[%clk 0:00:09.9]} 32. Rd1 {[%clk 0:00:09.3]} 32... Bb3 {[%clk 0:00:09.1]}
33. Rc1 {[%clk 0:00:09.8]} 33... Bc4 {[%clk 0:00:07.6]} 34. f3 {[%clk 0:00:09]}
34... Re2 {[%clk 0:00:08.1]} 35. Bf4 {[%clk 0:00:06.9]} 35... Ke6 {[%clk
0:00:07.7]} 36. Rd1 {[%clk 0:00:07.3]} 36... Kf5 {[%clk 0:00:06.2]} 37. Bg3
{[%clk 0:00:07]} 37... h5 {[%clk 0:00:05.8]} 38. h4 {[%clk 0:00:06.6]} 38... Ra2
{[%clk 0:00:05.3]} 39. Bc7 {[%clk 0:00:03.1]} 39... Rxa3 {[%clk 0:00:04.8]} 40.
Rd6 {[%clk 0:00:03.3]} 40... Ra4 {[%clk 0:00:03.1]} 41. Ba5 {[%clk 0:00:03.3]}
41... Ke5 {[%clk 0:00:01.9]} 42. Rxa6 {[%clk 0:00:03.6]} 42... Kd4 {[%clk
0:00:02.2]} 43. Rxg6 {[%clk 0:00:04]} 43... Kc3 {[%clk 0:00:02.9]} 44. Rg5
{[%clk 0:00:04.4]} 44... Rxa5 {[%clk 0:00:03.1]} 45. bxa5 {[%clk 0:00:04.3]}
45... b4 {[%clk 0:00:04]} 46. Rg7 {[%clk 0:00:02.3]} 46... b3 {[%clk 0:00:04.1]}
47. Rb7 {[%clk 0:00:03.1]} 47... b2 {[%clk 0:00:04.8]} 48. f4 {[%clk 0:00:03.3]}
48... Bb3 {[%clk 0:00:05.1]} 49. Rc7+ {[%clk 0:00:02.8]} 49... Kb4 {[%clk
0:00:05.8]} 50. Rb7+ {[%clk 0:00:03.1]} 50... Ka3 {[%clk 0:00:06.5]} 51. a6
{[%clk 0:00:03]} 51... b1=Q+ {[%clk 0:00:06.7]} 52. Kh2 {[%clk 0:00:03.9]} 52...
Qe4 {[%clk 0:00:06.7]} 53. a7 {[%clk 0:00:03.7]} 53... Qxb7 {[%clk 0:00:06.5]}
0-1

[Event "Early-Titled-Tuesday-Blitz-November-28-2023"]
[Site "Chess.com"]
[Date "2023.11.28"]
[Round "9"]
[White "chesstrainer2042"]
[Black "jcmesafischer"]
[Result "1-0"]
[WhiteElo "2506"]
[BlackElo "2334"]
[TimeControl "180+1"]
[EndTime "9:52:28 PST"]
[Termination "chesstrainer2042 won by checkmate"]

1. c4 {[%clk 0:02:56.1]} 1... Nf6 {[%clk 0:02:59.4]} 2. g3 {[%clk 0:02:56.2]}
2... e6 {[%clk 0:02:59.5]} 3. Bg2 {[%clk 0:02:56.2]} 3... d5 {[%clk 0:03:00]} 4.
Nf3 {[%clk 0:02:56.7]} 4... Be7 {[%clk 0:02:58.5]} 5. O-O {[%clk 0:02:54.9]}
5... O-O {[%clk 0:02:58.7]} 6. d4 {[%clk 0:02:54.2]} 6... dxc4 {[%clk 0:02:59]}
7. Ne5 {[%clk 0:02:54.8]} 7... Nc6 {[%clk 0:02:58.3]} 8. Nxc6 {[%clk 0:02:48.7]}
8... bxc6 {[%clk 0:02:57.6]} 9. Bxc6 {[%clk 0:02:49.1]} 9... Rb8 {[%clk
0:02:57.9]} 10. Na3 {[%clk 0:02:39]} 10... Bxa3 {[%clk 0:02:56.8]} 11. bxa3
{[%clk 0:02:38.8]} 11... Nd5 {[%clk 0:02:57.7]} 12. Qe1 {[%clk 0:02:05.1]} 12...
Bd7 {[%clk 0:02:51.8]} 13. Bxd7 {[%clk 0:01:43.9]} 13... Qxd7 {[%clk 0:02:52.7]}
14. Qa5 {[%clk 0:01:44.3]} 14... Rb5 {[%clk 0:01:41.3]} 15. Qxa7 {[%clk
0:01:34.4]} 15... Nc3 {[%clk 0:01:40.8]} 16. Re1 {[%clk 0:01:25.7]} 16... Qc6
{[%clk 0:01:40.4]} 17. a4 {[%clk 0:01:16.2]} 17... Rh5 {[%clk 0:01:09.4]} 18.
Bf4 {[%clk 0:00:57.5]} 18... Nd5 {[%clk 0:00:42.9]} 19. Rac1 {[%clk 0:00:49.4]}
19... Ra8 {[%clk 0:00:38.7]} 20. Rxc4 {[%clk 0:00:45.8]} 20... Rxa7 {[%clk
0:00:33.1]} 21. Rxc6 {[%clk 0:00:45.7]} 21... Rxa4 {[%clk 0:00:16.2]} 22. Bxc7
{[%clk 0:00:43.1]} 22... h6 {[%clk 0:00:11.2]} 23. e4 {[%clk 0:00:30.3]} 23...
Nxc7 {[%clk 0:00:09]} 24. Rxc7 {[%clk 0:00:30.5]} 24... Rxd4 {[%clk 0:00:09.2]}
25. Re2 {[%clk 0:00:20.6]} 25... Re5 {[%clk 0:00:06.9]} 26. f3 {[%clk
0:00:20.9]} 26... Ra5 {[%clk 0:00:07.3]} 27. Kf2 {[%clk 0:00:19.5]} 27... Ra3
{[%clk 0:00:07.5]} 28. Rb2 {[%clk 0:00:08.9]} 28... e5 {[%clk 0:00:06.1]} 29. g4
{[%clk 0:00:06.9]} 29... f6 {[%clk 0:00:05.6]} 30. Rbb7 {[%clk 0:00:06.5]} 30...
Rxa2+ {[%clk 0:00:05.4]} 31. Kg3 {[%clk 0:00:06.1]} 31... Rdd2 {[%clk
0:00:05.9]} 32. Rxg7+ {[%clk 0:00:06.3]} 32... Kf8 {[%clk 0:00:06.5]} 33. Rgf7+
{[%clk 0:00:05]} 33... Ke8 {[%clk 0:00:07]} 34. g5 {[%clk 0:00:04.1]} 34... Rg2+
{[%clk 0:00:06.5]} 35. Kh4 {[%clk 0:00:03.6]} 35... Rxg5 {[%clk 0:00:06.2]} 36.
Rfe7+ {[%clk 0:00:02.8]} 36... Kf8 {[%clk 0:00:06.1]} 37. Rf7+ {[%clk
0:00:02.7]} 37... Kg8 {[%clk 0:00:06.6]} 38. h3 {[%clk 0:00:02.1]} 38... Rg6
{[%clk 0:00:05]} 39. Rfc7 {[%clk 0:00:02]} 39... Kh8 {[%clk 0:00:04.9]} 40. Rc8+
{[%clk 0:00:01.6]} 40... Rg8 {[%clk 0:00:04.7]} 41. Rcc7 {[%clk 0:00:02]} 41...
Rg6 {[%clk 0:00:05.1]} 42. Kh5 {[%clk 0:00:02.1]} 42... Rag2 {[%clk 0:00:03.9]}
43. Rc8+ {[%clk 0:00:01.6]} 43... Rg8 {[%clk 0:00:04]} 44. Rxg8+ {[%clk
0:00:01.7]} 44... Kxg8 {[%clk 0:00:03.3]} 45. Kxh6 {[%clk 0:00:01.6]} 45... Rg3
{[%clk 0:00:03.9]} 46. h4 {[%clk 0:00:01.7]} 46... Rxf3 {[%clk 0:00:04]} 47. Kg6
{[%clk 0:00:02.1]} 47... Rf4 {[%clk 0:00:03.8]} 48. Rb8# {[%clk 0:00:01]} 1-0

[Event "Early-Titled-Tuesday-Blitz-November-28-2023"]
[Site "Chess.com"]
[Date "2023.11.28"]
[Round "9"]
[White "SnekkerAndersen"]
[Black "Timerkhanov"]
[Result "1-0"]
[WhiteElo "2551"]
[BlackElo "2675"]
[TimeControl "180+1"]
[EndTime "9:52:31 PST"]
[Termination "SnekkerAndersen won by resignation"]

1. d4 {[%clk 0:03:00.9]} 1... d5 {[%clk 0:02:59.6]} 2. Bf4 {[%clk 0:03:00.8]}
2... Nf6 {[%clk 0:02:58.7]} 3. e3 {[%clk 0:03:01.4]} 3... c5 {[%clk 0:02:58.9]}
4. c3 {[%clk 0:03:01.9]} 4... Nc6 {[%clk 0:02:59.1]} 5. Nd2 {[%clk 0:03:02.5]}
5... cxd4 {[%clk 0:02:58.9]} 6. exd4 {[%clk 0:03:02.8]} 6... Bf5 {[%clk
0:02:59.4]} 7. Qb3 {[%clk 0:03:02]} 7... Qc8 {[%clk 0:02:54.6]} 8. Ngf3 {[%clk
0:03:00.2]} 8... e6 {[%clk 0:02:54.8]} 9. Ne5 {[%clk 0:02:52.9]} 9... Be7 {[%clk
0:02:54]} 10. Be2 {[%clk 0:02:45.5]} 10... O-O {[%clk 0:02:52.8]} 11. O-O {[%clk
0:02:45.7]} 11... Nxe5 {[%clk 0:02:52.4]} 12. Bxe5 {[%clk 0:02:44.8]} 12... Ne8
{[%clk 0:02:45.8]} 13. Rac1 {[%clk 0:02:42]} 13... Nd6 {[%clk 0:02:41.5]} 14. c4
{[%clk 0:02:42]} 14... dxc4 {[%clk 0:02:40.8]} 15. Nxc4 {[%clk 0:02:42.9]} 15...
Qd7 {[%clk 0:02:24.7]} 16. Bf3 {[%clk 0:02:13.2]} 16... Nxc4 {[%clk 0:02:09.1]}
17. Rxc4 {[%clk 0:02:11.9]} 17... Rac8 {[%clk 0:02:04.4]} 18. Rxc8 {[%clk
0:02:08.4]} 18... Rxc8 {[%clk 0:02:05.3]} 19. Bxb7 {[%clk 0:01:24.3]} 19... Rc2
{[%clk 0:02:04.6]} 20. Bf3 {[%clk 0:01:24.2]} 20... h6 {[%clk 0:01:51]} 21. d5
{[%clk 0:01:11.1]} 21... Bc5 {[%clk 0:01:41.7]} 22. dxe6 {[%clk 0:01:09.7]}
22... fxe6 {[%clk 0:01:40.1]} 23. Qb7 {[%clk 0:00:40.7]} 23... Qxb7 {[%clk
0:01:17.8]} 24. Bxb7 {[%clk 0:00:41]} 24... Bd3 {[%clk 0:01:18.4]} 25. Rd1
{[%clk 0:00:23.2]} 25... Rxf2 {[%clk 0:01:14]} 26. Kh1 {[%clk 0:00:23.8]} 26...
Re2 {[%clk 0:01:04.6]} 27. Bc3 {[%clk 0:00:21.3]} 27... Be4 {[%clk 0:00:39]} 28.
Bxe4 {[%clk 0:00:16.4]} 28... Rxe4 {[%clk 0:00:39.9]} 29. h3 {[%clk 0:00:17]}
29... e5 {[%clk 0:00:32]} 30. Rd7 {[%clk 0:00:16.2]} 30... Bd4 {[%clk
0:00:29.2]} 31. Bxd4 {[%clk 0:00:13.7]} 31... exd4 {[%clk 0:00:27.6]} 32. Kg1
{[%clk 0:00:12.9]} 32... Re2 {[%clk 0:00:27.1]} 33. Rxd4 {[%clk 0:00:12.7]}
33... Rxb2 {[%clk 0:00:26.7]} 34. Ra4 {[%clk 0:00:13.3]} 34... Rb7 {[%clk
0:00:25]} 35. Ra6 {[%clk 0:00:13.8]} 35... Kf7 {[%clk 0:00:24]} 36. Kf2 {[%clk
0:00:14]} 36... Ke7 {[%clk 0:00:19.4]} 37. Ke3 {[%clk 0:00:12.7]} 37... Kf7
{[%clk 0:00:19.8]} 38. g3 {[%clk 0:00:12.2]} 38... Kg8 {[%clk 0:00:19.1]} 39. h4
{[%clk 0:00:12.6]} 39... Kh7 {[%clk 0:00:17.9]} 40. a3 {[%clk 0:00:12.5]} 40...
h5 {[%clk 0:00:16.3]} 41. Kf4 {[%clk 0:00:12.8]} 41... g6 {[%clk 0:00:15.8]} 42.
a4 {[%clk 0:00:11.6]} 42... Kg7 {[%clk 0:00:15.6]} 43. Ke5 {[%clk 0:00:11.8]}
43... Re7+ {[%clk 0:00:14.1]} 44. Kd6 {[%clk 0:00:11.5]} 44... Rf7 {[%clk
0:00:13.5]} 45. Kc5 {[%clk 0:00:11.4]} 45... Kh6 {[%clk 0:00:13.5]} 46. a5
{[%clk 0:00:09.1]} 46... Rf3 {[%clk 0:00:12.6]} 47. Rxa7 {[%clk 0:00:09.1]}
47... Rxg3 {[%clk 0:00:13.3]} 48. Rb7 {[%clk 0:00:06.1]} 48... Ra3 {[%clk
0:00:13.3]} 49. Kb5 {[%clk 0:00:05.9]} 49... g5 {[%clk 0:00:12.4]} 50. Rb6+
{[%clk 0:00:05.7]} 50... Kg7 {[%clk 0:00:12.7]} 51. hxg5 {[%clk 0:00:06.6]}
51... h4 {[%clk 0:00:13.2]} 52. Rh6 {[%clk 0:00:06.9]} 52... h3 {[%clk
0:00:13.4]} 53. a6 {[%clk 0:00:07.5]} 53... Rg3 {[%clk 0:00:12.2]} 54. Kb6
{[%clk 0:00:07.2]} 54... Rxg5 {[%clk 0:00:12.2]} 55. Rxh3 {[%clk 0:00:07.4]}
55... Rg6+ {[%clk 0:00:12.6]} 56. Kb7 {[%clk 0:00:07.1]} 1-0